Cogmind - Beta 16 @@@ ROGUE MODE // 2025.11.08 @ 18:11:19 Player: Amphouse Result: Destroyed by WP-XHJ(R) with Subdweller Beam Cannon Performance ------------- Evolutions (0) 0 Regions Visited (2) 400 Robots Destroyed (15) 75 Value Destroyed (380) 380 Prototype IDs (2) 40 Alien Tech Used (0) 0 Bonus (0) 0 TOTAL SCORE: 895 Bonus ------- None Cogmind --------- Core Integrity 0/250 Matter 300/300 Energy 82/100 System Corruption 0% Temperature Cool (34) Movement Core (50) Location -10/Subcaves Parts ------- > --- POWER (1) -------- (None) > --- PROPULSION (2) --- (None) > --- UTILITY (2) ------ Structural Scanner Seismic Detector > --- WEAPON (2) ------- (None) > --- INVENTORY (5) ---- Light Treads Wheel Disposable Heat Sink High-capacity Storage Unit Grenade Launcher Peak State ------------ > --- POWER ------------ Ion Engine > --- PROPULSION ------- Aluminum Leg Aluminum Leg > --- UTILITY ---------- Small Storage Unit Seismic Detector > --- WEAPON ----------- Medium Laser Assault Rifle > --- INVENTORY -------- Ion Engine Light Treads EM Pulse Gun [Rating: 7] Favorites ----------- Power Ion Engine Engine Ion Engine Propulsion Aluminum Leg Treads Light Treads Leg Aluminum Leg Utility Seismic Detector Device Seismic Detector Storage Small Storage Unit Weapon Medium Laser Energy Gun Medium Laser Ballistic Gun Assault Rifle Launcher Grenade Launcher Build | -11 -10 -10 ------- Run | Yrd Mat Sub Slots Evolved . | . . . Power . | . . . Propulsion . | . . . Utility . | . . . Weapon . | . . . Parts Attached 16 | 7 5 4 Power 2 | 1 1 . Engine 2 | 1 1 . Core . | . . . Reactor . | . . . Propulsion 5 | 2 2 1 Treads 1 | . . 1 Leg 4 | 2 2 . Wheel . | . . . Hover . | . . . Flight . | . . . Utility 3 | 2 . 1 Device 2 | 1 . 1 Storage 1 | 1 . . Processor . | . . . Hackware . | . . . Protection . | . . . Artifact . | . . . Weapon 6 | 2 2 2 Energy Gun 4 | 1 1 2 Energy Cannon . | . . . Ballistic Gun 1 | 1 . . Ballistic Cannon . | . . . Launcher 1 | . 1 . Special Weapon . | . . . Impact Weapon . | . . . Slashing Weapon . | . . . Piercing Weapon . | . . . Special Melee Weapon . | . . . Unidentified Prototypes . | . . . Parts Lost 8 | . . 8 Power 1 | . . 1 Propulsion 3 | . . 3 Utility . | . . . Weapon 4 | . . 4 Highest Loss Streak 4 | . . 4 To Critical Strikes 1 | . . 1 Average Backups 6 | 2 7 6 Power . | . . . Propulsion 2 | 1 3 2 Utility 1 | . 1 2 Weapon 2 | . 2 1 Tool/Special . | . . . Unused Backups 6 | . 2 4 Power . | . . . Propulsion 2 | . . 2 Utility 2 | . . 2 Weapon 2 | . 2 . Tool/Special . | . . . Average Slot Usage (%) 97 | . 100 88 Engine 12 | . 14 5 Treads 1 | . . 9 Leg 26 | . 28 18 Device 15 | . 14 21 Storage 12 | . 14 6 Energy Gun 14 | . 14 18 Ballistic Gun 11 | . 13 7 Peak Build Rating 7 | 7 7 7 Average Rating 6 | 5 6 6 On Entrance 4 | . 7 7 Avg Prop Armor Cover (%) 9 | . . 9 Naked Turns . | . . . Heaviest Build 16 | 15 16 15 Greatest Support 20 | 20 20 20 Greatest Overweight (x) 1 | 1 . . Average Overweight (x) . | . . . Largest Inventory Capacity 8 | 8 8 8 Average Capacity 7 | 7 8 6 Most Carried 8 | 5 8 8 Average Carried 6 | 2 7 6 Final Capacity 8 | 8 8 5 Final Carried 8 | 5 8 5 Class Distribution -------------------- 100% | Mutant Dominant Class ---------------- Mutant | -10/Materials Mutant | -10/Subcaves Resources | -11 -10 -10 ----------- Run | Yrd Mat Sub Matter Collected 514 | 282 172 60 Remotely . | . . . Salvage Created 629 | 96 420 113 Parts 32 | 3 25 4 Haulers Intercepted . | . . . Recyclers Shooed 1 | . 1 . Parts Field Recycled . | . . . Retrieved Matter . | . . . Parts Self-Destructed . | . . . Prevented . | . . . Parts Restored . | . . . Kills | -11 -10 -10 ------- Run | Yrd Mat Sub Combat Hostiles Destroyed 12 | . 10 2 Guns 12 | . 10 2 Classes Destroyed 5 | 2 2 1 Tunneler 1 | 1 . . Recycler 2 | 1 1 . Swarmer 3 | . 3 . Grunt 7 | . 7 . Subdweller 2 | . . 2 Best Kill Streak 3 | 2 3 2 Combat Bots Only 3 | . 3 2 Max Kills in Single Turn 1 | 1 1 1 Gunslinging . | . . . Exploded . | . . . Melee . | . . . Uniques/NPCs Destroyed . | . . . Combat | -11 -10 -10 -------- Run | Yrd Mat Sub Hostile Shots Fired 87 | . 52 35 Missed 14 | . 8 6 Hits 73 | . 44 29 Projectile 73 | . 44 29 Critical Strikes 2 | . . 2 Damage Taken 1133 | . 476 657 Core 253 | . 85 168 Absorbed by Shields . | . . . Core Remaining (%) 100 | 100 . . Volleys Fired 64 | 4 42 18 Largest 2 | 2 2 2 Hottest 80 | 70 70 80 Shots Fired 115 | 8 76 31 Gun 114 | 8 75 31 Cannon . | . . . Launcher 1 | . 1 . Special . | . . . Kinetic 45 | 4 34 7 Thermal 56 | 4 41 11 Explosive 1 | . 1 . Electromagnetic 13 | . . 13 Robot Hit Streak 25 | 2 8 25 Robot Miss Streak 5 | 2 5 1 Penetration Max . | . . . Secondary Targets 2 | . 2 . Max Gunslinging Chain 1 | . 1 . Shots Hit Robots 78 | 4 46 28 Core Hits 25 | 2 19 4 Critical Kills 1 | . . 1 Critical Parts Destroyed . | . . . Critical Strikes 8 | 1 3 4 Burn 6 | 1 3 2 Destroy 1 | . . 1 Corrupt 1 | . . 1 Melee Attacks . | . . . Impact . | . . . Slashing . | . . . Piercing . | . . . Sneak Attacks . | . . . Combat Hostiles . | . . . Follow-up Attacks . | . . . Damage Inflicted 977 | 55 600 322 Guns 946 | 55 570 321 Cannons . | . . . Explosions 18 | . 18 . Melee . | . . . Ramming 13 | . 12 1 Kinetic 367 | 30 259 78 Thermal 446 | 25 311 110 Explosive 18 | . 18 . Electromagnetic 133 | . . 133 Impact . | . . . Slashing . | . . . Piercing . | . . . Highest Corruption . | . . . Average Corruption . | . . . Corruption Purged . | . . . Corruption Blocked . | . . . Overload Shots . | . . . Overflow Damage . | . . . Projectiles . | . . . Explosions . | . . . Melee . | . . . Knockbacks . | . . . Impact . | . . . Kinetic . | . . . Secondary . | . . . Self-Inflicted Damage . | . . . Shots . | . . . Rammed 1 | . . 1 Targets Rammed 2 | . 1 1 Kicked 1 | . 1 . Crushed . | . . . Highest Temperature 259 | 18 189 259 Average Temperature 52 | 10 47 159 Received Heat Transfer 534 | . 192 342 Siege Activations . | . . . Martial Activations . | . . . Shielding Activations . | . . . Robots Disrupted . | . . . Combat Hostiles . | . . . Robots Corrupted . | . . . Combat Hostiles . | . . . Parts Fried 1 | . . 1 Impact Corruptions . | . . . Robots Melted . | . . . Combat Hostiles . | . . . Parts Melted 1 | . 1 . Heat Transferred 1776 | 148 1147 481 Parts Sabotaged . | . . . Parts Stolen . | . . . Parts Stripped . | . . . Power Chain Reactions . | . . . Alert | -11 -10 -10 ------- Run | Yrd Mat Sub Maximum Alert Level . | . . . Low Security (%) 100 | 100 100 . Level 1 . | . . . Level 2 . | . . . Level 3 . | . . . Level 4 . | . . . Level 5 . | . . . High Security . | . . . Max Security . | . . . Peak Influence 119 | 5 119 . Initial . | . . . Average 43 | 1 48 . Influence Increases 348 | 10 338 . Destroy 0b10 Robot/C 200 | . 200 . Destroy 0b10 Robot/NC 15 | 10 5 . Destroy Leader 40 | . 40 . Successful Hack 8 | . 8 . Destroy Structure 10 | . 10 . Lose Combat Pursuer 75 | . 75 . Influence Decreases 348 | 10 273 65 Entered New Map 32 | . . 32 Time Decay 313 | 10 273 30 Lost Part 3 | . . 3 Squads Dispatched 3 | . 3 . Investigation 1 | . 1 . Extermination . | . . . Reinforcement 2 | . 2 . Assault . | . . . Garrison . | . . . Intercept . | . . . Searches Triggered . | . . . Construction Impeded . | . . . Haulers Reinforced . | . . . Active Scanning Responses . | . . . Cargo Convoy Interrupts . | . . . Stealth | -11 -10 -10 --------- Run | Yrd Mat Sub Distress Signals 3 | . 3 . Communications Jammed . | . . . Distress Signals . | . . . Times Spotted 32 | . 28 4 Peak Tracking Total 5 | . 5 2 Tactical Retreats 3 | . 3 . Traps | -11 -10 -10 ------- Run | Yrd Mat Sub Traps Triggered 1 | . 1 . Indirectly . | . . . Trap Hack Attempts . | . . . Triggered . | . . . Disarmed . | . . . Reprogrammed . | . . . Reused . | . . . Traps Extracted . | . . . Installed . | . . . Triggered . | . . . Machines | -11 -10 -10 ---------- Run | Yrd Mat Sub Machines Disabled . | . . . Max in Single Turn . | . . . Machines Repaired . | . . . Machines Dismantled . | . . . Machines Sabotaged . | . . . Overloaded Fab Kills . | . . . Hacking | -11 -10 -10 --------- Run | Yrd Mat Sub Machines Accessed 6 | . 6 . Terminals 5 | . 5 . Fabricators . | . . . Repair Stations 1 | . 1 . Recycling Units . | . . . Scanalyzers . | . . . Garrison Access . | . . . Total Hacks 15 | . 15 . Successful 7 | . 7 . Failed 8 | . 8 . Catastrophic 1 | . 1 . Database Lockouts . | . . . Manual 7 | . 7 . Terminals 12 | . 12 . Fabricators . | . . . Repair Stations 3 | . 3 . Recycling Units . | . . . Scanalyzers . | . . . Garrison Access . | . . . Terminal Hacks 4 | . 4 . Prototype ID Bank 1 | . 1 . Maintenance Status 1 | . 1 . Recall Reinforcements 1 | . 1 . Hauler Manifests 1 | . 1 . Fabricator Hacks . | . . . Repair Station Hacks . | . . . Recycling Unit Hacks . | . . . Scanalyzer . | . . . Garrison Access Hacks . | . . . Unauthorized Hacks 3 | . 3 . Terminals 3 | . 3 . Track 1 | . 1 . Botnet 2 | . 2 . Fabricators . | . . . Repair Stations . | . . . Recycling Units . | . . . Scanalyzers . | . . . Garrison Access . | . . . Data Cores Recovered . | . . . Used . | . . . Hacking Detections 5 | . 5 . Full Trace Events 1 | . 1 . Feedback Events . | . . . Feedback Blocked . | . . . Robot Schematics Acquired . | . . . Robots Built . | . . . Authchips . | . . . Time . | . . . Total Robot Build Rating . | . . . Part Schematics Acquired . | . . . Parts Built . | . . . Authchips . | . . . Time . | . . . Total Part Build Rating . | . . . Part Studies Acquired . | . . . Parts Repaired . | . . . Time . | . . . Parts Recycled . | . . . Recycled Matter . | . . . Retrieved Matter . | . . . Retrieved Components . | . . . Parts Scanalyzed . | . . . Part Schematics Acquired . | . . . Parts Damaged . | . . . Bothacking | -11 -10 -10 ------------ Run | Yrd Mat Sub Used RIF Installer . | . . . Robots Hacked . | . . . Non-combat . | . . . Combat . | . . . Robot Hacks Applied . | . . . Relay Couplers Released . | . . . Fabnet Peak Effective % . | . . . Robots Rewired . | . . . Allies Hacked . | . . . Hacks Repelled . | . . . Allies | -11 -10 -10 -------- Run | Yrd Mat Sub Total Allies . | . . . Largest Group . | . . . Highest-Rated Group . | . . . Highest-Rated Ally . | . . . Total Orders . | . . . Ally Attacks . | . . . Total Damage . | . . . Kills . | . . . Allies Corrupted . | . . . Allies Melted . | . . . Intel | -11 -10 -10 ------- Run | Yrd Mat Sub Active Infowar (turns) 1068 | 47 822 199 Structural 105 | . . 105 Seismic 1068 | 47 822 199 Robot Analysis Total . | . . . Derelict Logs Recovered . | . . . Drone Launches . | . . . Drone Recoveries . | . . . Exploration | -11 -10 -10 ------------- Run | Yrd Mat Sub Turns Passed 1121 | 95 827 199 Spaces Moved 636 | 55 508 73 Core 3 | 3 . . Treads 41 | . . 41 Legs 592 | 52 508 32 Wheels . | . . . Hover . | . . . Flight . | . . . Fastest Speed 50 | 50 120 120 Average Speed 122 | 120 120 142 Slowest Speed 190 | 190 120 160 Overloaded Moves . | . . . Propulsion Burnouts . | . . . Robots Hopped . | . . . Potential Cave-ins . | . . . Cave-ins Triggered . | . . . Exploration Rate (%) 31 | 4 86 3 Regions Visited 2 Branch Regions 1 Pre-discovered Areas . | . . . Known Exits Taken . | . . . Unknown Exits Taken 2 | 1 1 . Scrap Searched . | . . . Spaces Dug 9 | . 9 . Terrain Destroyed 9 | . 9 . Melee . | . . . Projectile . | . . . AOE 9 | . 9 . Terrain Rammed . | . . . Walls Destroyed . | . . . Machines Disabled . | . . . Actions | -11 -10 -10 --------- Run | Yrd Mat Sub Total 860 | 72 653 135 Wait 119 | 2 82 35 Move 634 | 54 507 73 Hop . | . . . Pick Up 13 | 5 7 1 Fast Attach 8 | 7 . 1 Attach 5 | . 2 3 Detach 1 | . 1 . Swap 6 | . 4 2 Drop 8 | . 7 1 Fire 64 | 4 42 18 Melee . | . . . Ram . | . . . Kick 1 | . 1 . Crush 1 | . . 1 Escape Stasis . | . . . Rewire . | . . . Trap . | . . . Miscellaneous . | . . . Route ------- -11/Scrapyard -10/Materials (discovered 5 exits: [*Mat x2] / [*Min x2] / [*Sub]) -10/Subcaves History --------- Turn | Location | Event 57 | -11/Scrapyard | Discovered new exit (range 16) 96 | -11/Scrapyard | Entered Materials 162 | -10/Materials | Discovered new exit (range 16) 317 | -10/Materials | Build established: Mutant 449 | -10/Materials | Discovered new exit (range 8) 700 | -10/Materials | Discovered new exit (range 12) 762 | -10/Materials | Discovered new exit (range 16) 913 | -10/Materials | Discovered new exit (range 7) 923 | -10/Materials | Entered Subcaves 924 | -10/Subcaves | Approached by a straggling Scientist 977 | -10/Subcaves | Core integrity fell below 50% 1001 | -10/Subcaves | Core integrity fell below 20% 1023 | -10/Subcaves | Lost 4 parts (1p1n2w) 1032 | -10/Subcaves | A swath of the cavern ceiling suddenly collapsed 1122 | -10/Subcaves | Destroyed by WP-XHJ(R) with Subdweller Beam Cannon Last Messages --------------- MW-CQS(R) misfires. Subatomizers dissect the Corrupted Sub. Machine Gun. MW-CQS(R) suffers critical hit (Destroy). MW-CQS(R) destroyed. Acquired 30 matter. Acquired Disposable Heat Sink. Dropped Sml. Storage Unit. Subatomizers dissect the Corrupted Sub. Machine Gun. Acquired Structural Scanner. Acquired 10 matter. 6 Matter crushed. A swath of the cavern ceiling suddenly collapses. Assault Rifle destroyed. Critical hit (Meltdown: +270). WP-XHJ(R) suffers critical hit (Burn). Aluminum Leg destroyed. WP-XHJ(R) suffers critical hit (Burn). Med. Laser destroyed. Slammed into WP-XHJ(R). Lgt. Treads destroyed. Map ----- +----------------------------------------------------+ | | | | | | | | | | | | | | | ?????????????????????????????????????????????????? | | ?????????????????????????????????????????????????? | | ?????????????????????????????????????????????????? | | ?????????????????????????????????????????????????? | | ?????????????????????????????????????????????????? | | ?????????????????????????????????????????????????? | | ?????????????????????????????????????????????????? | | ?????????????????????????????????????????????????? | | ?????????????????????????????????????????????????? | | ?????????????????????????????????????????????????? | | ?????????????????????????????????????????????????? | | ?????????????????????????????????????????????????? | | ?????????????????????????????????????????????????? | | ???????????????####??????????????????????????????? | | ????????????###########????#####?????????????????? | | ????????????#### ################????????????????? | | ????????????## #"#"####### ####???????????????? | | ????????????### "#"#"#;#;#R ###???????????????? | | ?????????????####"#""%#;;@ ###??????????????? | | ???????#########"#######;;## %##?###??????????? | | ???????########""##""######### ###?????????? | | ???????## #"#""#"######### % ###????????? | | ???????### "######"#"###?????? ! ###???????? | | ???????### "###" "##"##???????? !%* ##???????? | | ???????## ###"%##""####?????????% !####???????? | | ???????### # #""##""#####??????????%#####???????? | | ???????###!% #"""#""#####??????????####?????????? | | ???????## [ #"### ##??????????????????????????? | | ???????## !%#######""#??????????????????????????? | | ???????## !######%"##??????????????????????????? | | ???????## #??## "#??????????????????????????? | | ???????## ##### ##??????????????????????????? | | ???????## ###" #??????????????????????????? | | ???????## #?# ???????????????????????????? | | ???????### #? # ???????????????????????????? | | ???????### #?###???????????????????????????? | | ????????## ##???????????????????????????????? | | ????????## ####???????????????????????????????? | | ????????### ####???????????????????????????????? | | ????????##### ##?????????????????????????????????? | | ??????????######?????????????????????????????????? | | ????????????####?????????????????????????????????? | | ?????????????????????????????????????????????????? | +----------------------------------------------------+ Best States ------------- Heat Dissipation 25 Energy Generation 10 Energy Capacity 250 Matter Stores 300 Matter Capacity 300 Sight Range 16 Terrain Scan Density 10 Evasion (%) 55 Recoil Reduction 1 Item Schematics ----------------- None Robot Schematics ------------------ None Fabricated ------------ Nothing Repaired ---------- Nothing Studied --------- None Alien Tech Used ----------------- None Achievements -------------- Ghost 'Em Challenges ------------ None Game ------ Seed ShiftAntisysReplicator Manual? 0 Play Time 00:26:13 Cumulative 210.6 hours Start 2025.11.08 @ 17:40:46 End 2025.11.08 @ 18:11:19 Sessions 1 Manual Loads 0 Difficulty Rogue Special Mode None Game No. 83 Rogue 83 Adventurer 0 Explorer 0 Win Type - Total 14 Types 11/1/2/0/0/0/0/0/0/0 Lore% 59 Gallery% 67 Achievement% 35 Wizard Run 0 Options --------- Layout 0 ASCII 0 Keyboard 0 Movement Numpad Keybinds 0 Fullscreen 2 Font 18/X11 Map View 76x50 Zoom Use 0% Tactical HUD 1 Map Filters NONE Filters NONE Steam 1 RUN: 633a6df2-e090-407b-aa67-df40a85f631e